[Event "*** Titled Tuesday Blitz"]
[Site "Chess.com"]
[Date "2019.02.05"]
[Round "7"]
[White "Karina_Oparina"]
[Black "NMJeevanK"]
[Result "0-1"]
[WhiteElo "2187"]
[BlackElo "2352"]
[TimeControl "180+2"]
[EndTime "14:44:05 PST"]
[Termination "NMJeevanK won by resignation"]

1. Nf3 {[%clk 0:02:59]} 1... d5 {[%clk 0:03:00.7]} 2. g3 {[%clk 0:02:59.6]} 2...
Nf6 {[%clk 0:03:02.1]} 3. Bg2 {[%clk 0:03:00.5]} 3... c5 {[%clk 0:03:03.7]} 4.
d4 {[%clk 0:02:57.3]} 4... cxd4 {[%clk 0:03:02.2]} 5. Nxd4 {[%clk 0:02:58.1]}
5... e5 {[%clk 0:03:02.1]} 6. Nb3 {[%clk 0:02:58.8]} 6... Nc6 {[%clk 0:03:03.2]}
7. O-O {[%clk 0:02:56.7]} 7... Be6 {[%clk 0:03:01.9]} 8. Nc3 {[%clk 0:02:51.2]}
8... Rc8 {[%clk 0:03:00.6]} 9. e4 {[%clk 0:02:51.4]} 9... d4 {[%clk 0:03:01.3]}
10. Ne2 {[%clk 0:02:47.7]} 10... Be7 {[%clk 0:02:56]} 11. f4 {[%clk 0:02:48.2]}
11... Bg4 {[%clk 0:02:51.3]} 12. fxe5 {[%clk 0:02:42.6]} 12... Nxe5 {[%clk
0:02:42.5]} 13. h3 {[%clk 0:02:34.4]} 13... Bxe2 {[%clk 0:02:32.1]} 14. Qxe2
{[%clk 0:02:35]} 14... O-O {[%clk 0:02:27.8]} 15. Rd1 {[%clk 0:02:31.1]} 15...
Qb6 {[%clk 0:02:05.9]} 16. Nxd4 {[%clk 0:02:26.3]} 16... Rfd8 {[%clk 0:02:05.5]}
17. c3 {[%clk 0:02:26.7]} 17... Bc5 {[%clk 0:01:59.2]} 18. Be3 {[%clk
0:02:24.7]} 18... Nc6 {[%clk 0:02:00.4]} 19. Qf2 {[%clk 0:02:19.1]} 19... Re8
{[%clk 0:01:54.7]} 20. b4 {[%clk 0:01:58.5]} 20... Bxd4 {[%clk 0:01:42.9]} 21.
Bxd4 {[%clk 0:01:54.8]} 21... Nxd4 {[%clk 0:01:41.6]} 22. Qxd4 {[%clk
0:01:54.4]} 22... Qxd4+ {[%clk 0:01:40.8]} 23. Rxd4 {[%clk 0:01:51.8]} 23...
Rxc3 {[%clk 0:01:41.7]} 24. e5 {[%clk 0:01:51.4]} 24... Rxe5 {[%clk 0:01:39.8]}
25. Bxb7 {[%clk 0:01:45.3]} 25... Rxg3+ {[%clk 0:01:39.2]} 26. Kh2 {[%clk
0:01:46]} 26... Rge3 {[%clk 0:01:34.7]} 27. Rd8+ {[%clk 0:01:43.7]} 27... Re8
{[%clk 0:01:31.3]} 28. Rxe8+ {[%clk 0:01:42.7]} 28... Nxe8 {[%clk 0:01:24.6]}
29. a4 {[%clk 0:01:40.6]} 29... Nd6 {[%clk 0:01:22.5]} 30. Bc6 {[%clk 0:01:38]}
30... f5 {[%clk 0:01:22.7]} 31. Rd1 {[%clk 0:01:35.4]} 31... Ne4 {[%clk
0:00:51]} 32. Rd8+ {[%clk 0:01:21.5]} 32... Kf7 {[%clk 0:00:52.2]} 33. Rd7+
{[%clk 0:01:22.7]} 33... Kf6 {[%clk 0:00:53.5]} 34. Rxa7 {[%clk 0:01:23.2]}
34... Re2+ {[%clk 0:00:51.8]} 35. Kg1 {[%clk 0:01:22.6]} 35... Ng5 {[%clk
0:00:47.4]} 36. Bg2 {[%clk 0:01:07.9]} 36... Ne6 {[%clk 0:00:33.8]} 37. a5
{[%clk 0:01:01.5]} 37... Rb2 {[%clk 0:00:33.5]} 38. Rb7 {[%clk 0:00:57.7]} 38...
Nf4 {[%clk 0:00:31.8]} 39. Bf1 {[%clk 0:00:58.2]} 39... Rb1 {[%clk 0:00:25.1]}
40. Kf2 {[%clk 0:00:48.6]} 40... Rb2+ {[%clk 0:00:24.5]} 41. Kf3 {[%clk
0:00:48.9]} 41... g5 {[%clk 0:00:19.4]} 42. a6 {[%clk 0:00:40.5]} 42... Nd5
{[%clk 0:00:14.8]} 43. a7 {[%clk 0:00:31.9]} 43... Ra2 {[%clk 0:00:13.3]} 44. b5
{[%clk 0:00:27.5]} 44... Ke5 {[%clk 0:00:07]} 45. b6 {[%clk 0:00:21.2]} 45...
Nxb6 {[%clk 0:00:06.7]} 46. Rxb6 {[%clk 0:00:22.1]} 46... Rxa7 {[%clk
0:00:06.5]} 47. Rb5+ {[%clk 0:00:23.1]} 47... Kf6 {[%clk 0:00:07.4]} 48. Bd3
{[%clk 0:00:23.6]} 48... f4 {[%clk 0:00:06.5]} 49. Rf5+ {[%clk 0:00:22.5]} 49...
Ke6 {[%clk 0:00:06.8]} 50. Rxg5 {[%clk 0:00:23.3]} 50... Ra3 {[%clk 0:00:07.1]}
51. Ke4 {[%clk 0:00:22.6]} 51... Ra4+ {[%clk 0:00:05.6]} 52. Kf3 {[%clk
0:00:22.4]} 52... Ra3 {[%clk 0:00:07.1]} 53. Ke2 {[%clk 0:00:20.3]} 53... f3+
{[%clk 0:00:08.5]} 54. Kd2 {[%clk 0:00:19.7]} 54... f2 {[%clk 0:00:07.3]} 55.
Bf1 {[%clk 0:00:19.7]} 55... Ra1 {[%clk 0:00:06.6]} 56. Ke2 {[%clk 0:00:20.5]}
56... Ra2+ {[%clk 0:00:08.1]} 57. Kf3 {[%clk 0:00:21.3]} 57... Kf6 {[%clk
0:00:09.7]} 58. Rg4 {[%clk 0:00:21.7]} 58... h5 {[%clk 0:00:10.5]} 59. Rf4+
{[%clk 0:00:21.7]} 59... Kg5 {[%clk 0:00:11.9]} 60. Rf8 {[%clk 0:00:20.9]} 60...
Ra3+ {[%clk 0:00:11.8]} 61. Kg2 {[%clk 0:00:21.9]} 61... h4 {[%clk 0:00:12.4]}
62. Rxf2 {[%clk 0:00:21.7]} 62... Rg3+ {[%clk 0:00:13.4]} 63. Kh2 {[%clk
0:00:22.5]} 63... Kg6 {[%clk 0:00:13.3]} 64. Rf4 {[%clk 0:00:22.9]} 64... Kg5
{[%clk 0:00:14]} 65. Be2 {[%clk 0:00:22.7]} 65... Kxf4 {[%clk 0:00:14.9]} 66.
Bf1 {[%clk 0:00:22.7]} 66... Ke3 {[%clk 0:00:16.1]} 67. Bg2 {[%clk 0:00:23.1]}
67... Kf2 {[%clk 0:00:16.3]} 68. Be4 {[%clk 0:00:23.9]} 68... Re3 {[%clk
0:00:16.7]} 69. Bg2 {[%clk 0:00:24.6]} 69... Ke1 {[%clk 0:00:17.7]} 70. Bd5
{[%clk 0:00:24.9]} 70... Re2+ {[%clk 0:00:19.1]} 71. Bg2 {[%clk 0:00:25.4]}
71... Rd2 {[%clk 0:00:19.7]} 72. Kh1 {[%clk 0:00:25.5]} 72... Kf2 {[%clk
0:00:21.6]} 73. Kh2 {[%clk 0:00:26.3]} 73... Rd3 {[%clk 0:00:22.2]} 74. Be4
{[%clk 0:00:27]} 74... Re3 {[%clk 0:00:22.6]} 75. Bg2 {[%clk 0:00:27.8]} 75...
Rg3 {[%clk 0:00:23.7]} 76. Be4 {[%clk 0:00:28.7]} 76... Rg5 {[%clk 0:00:24.5]}
77. Bc6 {[%clk 0:00:28.7]} 77... Kf1 {[%clk 0:00:24.1]} 78. Bf3 {[%clk
0:00:28.6]} 78... Rf5 {[%clk 0:00:21.3]} 79. Bg2+ {[%clk 0:00:29.2]} 79... Ke1
{[%clk 0:00:21.4]} 80. Be4 {[%clk 0:00:29.1]} 80... Rf1 {[%clk 0:00:19.3]} 81.
Kg2 {[%clk 0:00:25.9]} 81... Rf2+ {[%clk 0:00:15.6]} 82. Kh1 {[%clk 0:00:26.7]}
82... Kf1 {[%clk 0:00:15.7]} 83. Bd5 {[%clk 0:00:25.9]} 83... Rd2 {[%clk
0:00:15.7]} 84. Be4 {[%clk 0:00:25.3]} 84... Kf2 {[%clk 0:00:14.7]} 85. Kh2
{[%clk 0:00:25.6]} 85... Ke3+ {[%clk 0:00:14.9]} 86. Bg2 {[%clk 0:00:26.5]}
86... Kf4 {[%clk 0:00:16.4]} 87. Kh1 {[%clk 0:00:24.2]} 87... Kg3 {[%clk
0:00:16.3]} 88. Bf1 {[%clk 0:00:18.9]} 88... Rd1 {[%clk 0:00:12.6]} 89. Kg1
{[%clk 0:00:17.8]} 89... Rc1 {[%clk 0:00:13.9]} 0-1

[Event "*** Titled Tuesday Blitz"]
[Site "Chess.com"]
[Date "2019.02.05"]
[Round "8"]
[White "DonPreuss"]
[Black "WorldChampionBulletChess"]
[Result "1-0"]
[WhiteElo "2195"]
[BlackElo "2093"]
[TimeControl "180+2"]
[EndTime "14:50:59 PST"]
[Termination "DonPreuss won by resignation"]

1. d4 {[%clk 0:03:01.9]} 1... Nf6 {[%clk 0:02:31]} 2. Nc3 {[%clk 0:03:02.1]}
2... e6 {[%clk 0:02:32.9]} 3. e4 {[%clk 0:03:02.6]} 3... d5 {[%clk 0:02:33.7]}
4. exd5 {[%clk 0:03:03.7]} 4... exd5 {[%clk 0:02:34.4]} 5. Bd3 {[%clk
0:03:05.3]} 5... Bd6 {[%clk 0:02:36.3]} 6. Nge2 {[%clk 0:03:06.6]} 6... O-O
{[%clk 0:02:38.2]} 7. O-O {[%clk 0:03:07.5]} 7... Re8 {[%clk 0:02:40.1]} 8. Ng3
{[%clk 0:03:05.6]} 8... c6 {[%clk 0:02:42]} 9. Bg5 {[%clk 0:03:01]} 9... Qc7
{[%clk 0:02:43.9]} 10. Bxf6 {[%clk 0:03:00.4]} 10... gxf6 {[%clk 0:02:45.8]} 11.
Qh5 {[%clk 0:02:57.8]} 11... f5 {[%clk 0:02:45.7]} 12. Nxf5 {[%clk 0:02:39.1]}
12... Bxf5 {[%clk 0:02:45.6]} 13. Bxf5 {[%clk 0:02:40.1]} 13... f6 {[%clk
0:02:46.5]} 14. Qxe8+ {[%clk 0:02:40.9]} 14... Bf8 {[%clk 0:02:42.8]} 15. Rae1
{[%clk 0:02:32.1]} 15... Qf7 {[%clk 0:02:38.4]} 16. Be6 {[%clk 0:02:31.8]} 1-0

[Event "*** Titled Tuesday Blitz"]
[Site "Chess.com"]
[Date "2019.02.05"]
[Round "8"]
[White "politeplayer"]
[Black "Iyael"]
[Result "0-1"]
[WhiteElo "2004"]
[BlackElo "2003"]
[TimeControl "180+2"]
[EndTime "14:53:20 PST"]
[Termination "Iyael won by resignation"]

1. e4 {[%clk 0:03:01.9]} 1... c5 {[%clk 0:02:35.8]} 2. d4 {[%clk 0:02:58.4]}
2... cxd4 {[%clk 0:02:27.3]} 3. c3 {[%clk 0:02:59.4]} 3... Nf6 {[%clk
0:02:25.3]} 4. e5 {[%clk 0:03:00.3]} 4... Nd5 {[%clk 0:02:26.3]} 5. Nf3 {[%clk
0:03:01.7]} 5... e6 {[%clk 0:02:26.5]} 6. cxd4 {[%clk 0:03:02.1]} 6... b6 {[%clk
0:02:27.1]} 7. Nc3 {[%clk 0:03:01.8]} 7... Nxc3 {[%clk 0:02:26.4]} 8. bxc3
{[%clk 0:03:02.8]} 8... Qc7 {[%clk 0:02:27.7]} 9. Bd2 {[%clk 0:03:03.3]} 9...
Bb7 {[%clk 0:02:27.5]} 10. Bd3 {[%clk 0:03:04.8]} 10... d6 {[%clk 0:02:28.2]}
11. O-O {[%clk 0:03:04.5]} 11... Nd7 {[%clk 0:02:29.1]} 12. Re1 {[%clk
0:03:05.2]} 12... dxe5 {[%clk 0:02:28.6]} 13. Ng5 {[%clk 0:02:58.9]} 13... g6
{[%clk 0:02:24.4]} 14. Qg4 {[%clk 0:02:51.8]} 14... h5 {[%clk 0:02:09.8]} 15.
Nxe6 {[%clk 0:02:39.8]} 15... Qd6 {[%clk 0:02:10.1]} 16. Qg5 {[%clk 0:01:44.3]}
16... Qxe6 {[%clk 0:02:05.1]} 17. Bb5 {[%clk 0:01:45.6]} 17... Bh6 {[%clk
0:02:02.4]} 18. Qxe5 {[%clk 0:01:16.3]} 18... Qxe5 {[%clk 0:02:01.8]} 19. Rxe5+
{[%clk 0:01:15.8]} 19... Kd8 {[%clk 0:02:01.9]} 20. Bxh6 {[%clk 0:01:14.7]}
20... Rxh6 {[%clk 0:02:02]} 21. Rae1 {[%clk 0:01:16.1]} 21... Nxe5 {[%clk
0:02:01.9]} 0-1

[Event "*** Titled Tuesday Blitz"]
[Site "Chess.com"]
[Date "2019.02.05"]
[Round "8"]
[White "playerorkinyo"]
[Black "Godzillator"]
[Result "0-1"]
[WhiteElo "2336"]
[BlackElo "2390"]
[TimeControl "180+2"]
[EndTime "14:53:28 PST"]
[Termination "Godzillator won by resignation"]

1. d4 {[%clk 0:02:51.6]} 1... d5 {[%clk 0:03:00.5]} 2. c4 {[%clk 0:02:51.5]}
2... c6 {[%clk 0:03:01.6]} 3. Nf3 {[%clk 0:02:51.5]} 3... Nf6 {[%clk 0:03:02.9]}
4. e3 {[%clk 0:02:52.4]} 4... Bf5 {[%clk 0:03:02.7]} 5. Nc3 {[%clk 0:02:51.6]}
5... a6 {[%clk 0:03:03.5]} 6. Bd3 {[%clk 0:02:42.6]} 6... Bxd3 {[%clk
0:03:03.5]} 7. Qxd3 {[%clk 0:02:43.7]} 7... e6 {[%clk 0:03:04.9]} 8. O-O {[%clk
0:02:42.1]} 8... Bb4 {[%clk 0:03:06.4]} 9. Bd2 {[%clk 0:02:41]} 9... O-O {[%clk
0:03:06.7]} 10. Ne5 {[%clk 0:02:39.1]} 10... Bxc3 {[%clk 0:03:03.6]} 11. Bxc3
{[%clk 0:02:39.1]} 11... Nbd7 {[%clk 0:03:04.7]} 12. Nxd7 {[%clk 0:02:32.9]}
12... Qxd7 {[%clk 0:03:04.5]} 13. Rad1 {[%clk 0:02:31.6]} 13... b5 {[%clk
0:03:05.2]} 14. c5 {[%clk 0:02:31]} 14... a5 {[%clk 0:03:05.4]} 15. f3 {[%clk
0:02:31.2]} 15... Rfe8 {[%clk 0:03:01.9]} 16. g4 {[%clk 0:02:25.1]} 16... h6
{[%clk 0:03:00]} 17. Qe2 {[%clk 0:02:22.9]} 17... Qc7 {[%clk 0:02:56.3]} 18. Qg2
{[%clk 0:02:19.3]} 18... Nd7 {[%clk 0:02:57.1]} 19. Be1 {[%clk 0:02:02.6]} 19...
e5 {[%clk 0:02:53.7]} 20. Bg3 {[%clk 0:02:01.3]} 20... Qd8 {[%clk 0:02:54.7]}
21. Rde1 {[%clk 0:01:58.8]} 21... exd4 {[%clk 0:02:55]} 22. exd4 {[%clk
0:01:59.3]} 22... Qf6 {[%clk 0:02:55.1]} 23. Qd2 {[%clk 0:02:00.5]} 23... Rxe1
{[%clk 0:02:52.1]} 24. Rxe1 {[%clk 0:02:01.4]} 24... Qxf3 {[%clk 0:02:52.5]} 25.
Qf4 {[%clk 0:01:50.9]} 25... Qd3 {[%clk 0:02:45.3]} 26. Bf2 {[%clk 0:01:19.7]}
26... Nf6 {[%clk 0:02:42.8]} 27. h3 {[%clk 0:01:08.4]} 27... Ne4 {[%clk
0:02:40.2]} 28. Be3 {[%clk 0:01:09.7]} 28... Re8 {[%clk 0:02:34.7]} 29. Rf1
{[%clk 0:01:08.4]} 29... Ng5 {[%clk 0:02:31.2]} 0-1

[Event "*** Titled Tuesday Blitz"]
[Site "Chess.com"]
[Date "2019.02.05"]
[Round "8"]
[White "HouseOfDurin"]
[Black "aa175"]
[Result "1-0"]
[WhiteElo "1940"]
[BlackElo "1907"]
[TimeControl "180+2"]
[EndTime "14:54:24 PST"]
[Termination "HouseOfDurin won by resignation"]

1. d4 {[%clk 0:03:01.9]} 1... e5 {[%clk 0:02:52.9]} 2. dxe5 {[%clk 0:03:02.5]}
2... Nc6 {[%clk 0:02:53.8]} 3. Nf3 {[%clk 0:03:02.8]} 3... Qe7 {[%clk
0:02:54.3]} 4. g3 {[%clk 0:03:03.5]} 4... Nxe5 {[%clk 0:02:50.8]} 5. Nxe5 {[%clk
0:03:05.4]} 5... Qxe5 {[%clk 0:02:51.6]} 6. Bg2 {[%clk 0:03:06.5]} 6... Nf6
{[%clk 0:02:52.7]} 7. O-O {[%clk 0:03:07.2]} 7... d5 {[%clk 0:02:54.2]} 8. Nc3
{[%clk 0:02:45]} 8... c6 {[%clk 0:02:52.5]} 9. Bf4 {[%clk 0:02:40.8]} 9... Qh5
{[%clk 0:02:51.9]} 10. e4 {[%clk 0:02:18.8]} 10... Bg4 {[%clk 0:02:50.4]} 11. f3
{[%clk 0:02:14.1]} 11... Bc5+ {[%clk 0:02:21.3]} 12. Kh1 {[%clk 0:02:11.6]}
12... Bh3 {[%clk 0:02:12.4]} 13. exd5 {[%clk 0:02:02.4]} 13... Bxg2+ {[%clk
0:02:11.9]} 14. Kxg2 {[%clk 0:02:04.3]} 14... cxd5 {[%clk 0:02:12.7]} 15. Re1+
{[%clk 0:01:41.6]} 15... Kd7 {[%clk 0:02:12]} 16. Re5 {[%clk 0:01:36.8]} 16...
Qg6 {[%clk 0:00:38]} 17. Rg5 {[%clk 0:01:27.2]} 17... Qh6 {[%clk 0:00:34.4]} 18.
Rxd5+ {[%clk 0:01:23.1]} 18... Nxd5 {[%clk 0:00:36.3]} 19. Qxd5+ {[%clk
0:01:15.8]} 1-0

[Event "*** Titled Tuesday Blitz"]
[Site "Chess.com"]
[Date "2019.02.05"]
[Round "8"]
[White "AttilaTurzo"]
[Black "DenisQ"]
[Result "1/2-1/2"]
[WhiteElo "2413"]
[BlackElo "2656"]
[TimeControl "180+2"]
[EndTime "14:54:26 PST"]
[Termination "Game drawn by agreement"]

1. d4 {[%clk 0:03:00.5]} 1... d5 {[%clk 0:03:00.2]} 2. Bf4 {[%clk 0:02:59.5]}
2... Nf6 {[%clk 0:03:00.6]} 3. e3 {[%clk 0:03:00.6]} 3... Bf5 {[%clk 0:02:55.1]}
4. c4 {[%clk 0:02:59.7]} 4... c6 {[%clk 0:02:53.8]} 5. Nc3 {[%clk 0:03:00.7]}
5... e6 {[%clk 0:02:53.8]} 6. Nf3 {[%clk 0:03:00.5]} 6... Nbd7 {[%clk
0:02:53.6]} 7. Qb3 {[%clk 0:03:01.6]} 7... Qb6 {[%clk 0:02:53.3]} 8. c5 {[%clk
0:03:02.8]} 8... Qxb3 {[%clk 0:02:54.3]} 9. axb3 {[%clk 0:03:04.7]} 9... a6
{[%clk 0:02:55.6]} 10. b4 {[%clk 0:02:59.2]} 10... Rc8 {[%clk 0:02:55]} 11. h3
{[%clk 0:02:46.1]} 11... Be7 {[%clk 0:02:54.8]} 12. Nd2 {[%clk 0:02:46.8]} 12...
Bd8 {[%clk 0:02:54.9]} 13. Nb3 {[%clk 0:02:46.7]} 13... Bc7 {[%clk 0:02:52.2]}
14. Na5 {[%clk 0:02:48]} 14... Bxf4 {[%clk 0:02:52.6]} 15. exf4 {[%clk
0:02:49.3]} 15... Rc7 {[%clk 0:02:53.7]} 16. g3 {[%clk 0:02:36.7]} 16... h5
{[%clk 0:02:50]} 17. Kd2 {[%clk 0:02:33.4]} 17... Ne4+ {[%clk 0:02:47.5]} 18.
Nxe4 {[%clk 0:02:33.7]} 18... Bxe4 {[%clk 0:02:49.4]} 19. Rg1 {[%clk 0:02:32.8]}
19... Ke7 {[%clk 0:02:47.6]} 20. Nb3 {[%clk 0:01:56.8]} 20... Nf6 {[%clk
0:02:31.2]} 21. Nc1 {[%clk 0:01:51.1]} 21... Bf5 {[%clk 0:02:22]} 22. f3 {[%clk
0:01:50.2]} 22... Rg8 {[%clk 0:02:02.4]} 23. h4 {[%clk 0:01:49.1]} 23... Rh8
{[%clk 0:01:58.4]} 24. Nd3 {[%clk 0:01:35.9]} 24... Bxd3 {[%clk 0:01:57.3]} 25.
Bxd3 {[%clk 0:01:36.5]} 25... g6 {[%clk 0:01:57.5]} 26. Rge1 {[%clk 0:01:31.5]}
26... Kf8 {[%clk 0:01:49]} 27. Re5 {[%clk 0:01:29.8]} 27... Ng8 {[%clk
0:01:46.6]} 28. Ree1 {[%clk 0:01:21.3]} 28... Ne7 {[%clk 0:01:47.1]} 29. Kc3
{[%clk 0:01:19.2]} 29... Nf5 {[%clk 0:01:43.2]} 30. Bxf5 {[%clk 0:01:19.8]}
30... gxf5 {[%clk 0:01:44.2]} 31. Kd3 {[%clk 0:01:14.6]} 31... Rg8 {[%clk
0:01:44.8]} 32. Rg1 {[%clk 0:01:15.6]} 32... Ke7 {[%clk 0:01:46.1]} 33. Ke3
{[%clk 0:01:16.8]} 1/2-1/2

[Event "*** Titled Tuesday Blitz"]
[Site "Chess.com"]
[Date "2019.02.05"]
[Round "8"]
[White "Vamostodorecto"]
[Black "Last7Samurai"]
[Result "0-1"]
[WhiteElo "2458"]
[BlackElo "2695"]
[TimeControl "180+2"]
[EndTime "14:54:36 PST"]
[Termination "Last7Samurai won by resignation"]

1. d4 {[%clk 0:03:01.9]} 1... f5 {[%clk 0:02:59.8]} 2. e4 {[%clk 0:03:02.3]}
2... fxe4 {[%clk 0:02:57.7]} 3. Nc3 {[%clk 0:03:02.9]} 3... Nf6 {[%clk
0:02:56.7]} 4. Bg5 {[%clk 0:03:04]} 4... e6 {[%clk 0:02:57.2]} 5. f3 {[%clk
0:02:59.9]} 5... Be7 {[%clk 0:02:55.7]} 6. fxe4 {[%clk 0:02:53.6]} 6... O-O
{[%clk 0:02:56.2]} 7. Nf3 {[%clk 0:02:52.7]} 7... d5 {[%clk 0:02:54.4]} 8. e5
{[%clk 0:02:47.3]} 8... Ne4 {[%clk 0:02:54.8]} 9. Bxe7 {[%clk 0:02:48.2]} 9...
Qxe7 {[%clk 0:02:55.4]} 10. Bd3 {[%clk 0:02:47.5]} 10... Nxc3 {[%clk 0:02:52.1]}
11. bxc3 {[%clk 0:02:49.4]} 11... b6 {[%clk 0:02:44.9]} 12. O-O {[%clk
0:02:47.8]} 12... Ba6 {[%clk 0:02:44.7]} 13. Bxa6 {[%clk 0:02:42.2]} 13... Nxa6
{[%clk 0:02:46.6]} 14. Qd3 {[%clk 0:02:42.9]} 14... Nb8 {[%clk 0:02:48]} 15. c4
{[%clk 0:02:36.9]} 15... c6 {[%clk 0:01:40.9]} 16. a4 {[%clk 0:02:29.1]} 16...
Nd7 {[%clk 0:01:38.6]} 17. a5 {[%clk 0:02:27]} 17... bxa5 {[%clk 0:01:20]} 18.
cxd5 {[%clk 0:02:27.7]} 18... cxd5 {[%clk 0:01:18.2]} 19. Rxa5 {[%clk 0:02:26]}
19... Nb6 {[%clk 0:01:19.2]} 20. Rfa1 {[%clk 0:02:22.3]} 20... Nc4 {[%clk
0:01:18.5]} 21. Ra6 {[%clk 0:02:16.4]} 21... h6 {[%clk 0:01:19.5]} 22. Qg6
{[%clk 0:02:07.4]} 22... Nb6 {[%clk 0:01:17.4]} 23. Qg4 {[%clk 0:01:42.4]} 23...
Rfe8 {[%clk 0:01:16.7]} 24. Nh4 {[%clk 0:01:41.2]} 24... Nc4 {[%clk 0:01:13.4]}
25. Ng6 {[%clk 0:01:38.6]} 25... Qf7 {[%clk 0:01:12.5]} 26. Rf1 {[%clk
0:01:10.1]} 26... Qxf1+ {[%clk 0:01:12.4]} 27. Kxf1 {[%clk 0:01:06.9]} 27...
Ne3+ {[%clk 0:01:14.3]} 0-1

[Event "*** Titled Tuesday Blitz"]
[Site "Chess.com"]
[Date "2019.02.05"]
[Round "8"]
[White "yuki_chess123"]
[Black "wanyaland"]
[Result "1-0"]
[WhiteElo "2044"]
[BlackElo "2096"]
[TimeControl "180+2"]
[EndTime "14:55:01 PST"]
[Termination "yuki_chess123 won by resignation"]

1. Nf3 {[%clk 0:02:59.5]} 1... Nf6 {[%clk 0:02:57.2]} 2. g3 {[%clk 0:02:59.3]}
2... d5 {[%clk 0:02:59.1]} 3. Bg2 {[%clk 0:03:00.3]} 3... c5 {[%clk 0:03:00.3]}
4. c4 {[%clk 0:02:56.6]} 4... d4 {[%clk 0:03:00.6]} 5. b4 {[%clk 0:02:53.4]}
5... cxb4 {[%clk 0:02:59.6]} 6. a3 {[%clk 0:02:54.1]} 6... bxa3 {[%clk
0:02:58.5]} 7. Bxa3 {[%clk 0:02:53.9]} 7... Nc6 {[%clk 0:02:59.6]} 8. O-O {[%clk
0:02:53.7]} 8... e5 {[%clk 0:03:00.5]} 9. Bxf8 {[%clk 0:02:53.4]} 9... Kxf8
{[%clk 0:03:02]} 10. d3 {[%clk 0:02:53.6]} 10... g6 {[%clk 0:03:02.5]} 11. Na3
{[%clk 0:02:44.7]} 11... Kg7 {[%clk 0:03:03]} 12. Qb3 {[%clk 0:02:35.1]} 12...
Re8 {[%clk 0:02:57.5]} 13. Nb5 {[%clk 0:02:34.1]} 13... a6 {[%clk 0:02:54]} 14.
Qa3 {[%clk 0:02:26.6]} 14... e4 {[%clk 0:02:34.1]} 15. dxe4 {[%clk 0:02:05.9]}
15... Rxe4 {[%clk 0:02:34.3]} 16. Rfd1 {[%clk 0:01:52]} 16... Qb6 {[%clk
0:02:11.9]} 17. Nfxd4 {[%clk 0:01:16.1]} 17... Rxd4 {[%clk 0:02:01.4]} 18. Nxd4
{[%clk 0:01:16.2]} 18... Nxd4 {[%clk 0:02:01.9]} 19. Qe3 {[%clk 0:01:17]} 19...
Nxe2+ {[%clk 0:01:54.2]} 20. Qxe2 {[%clk 0:01:17.6]} 20... Bg4 {[%clk
0:01:54.1]} 21. Bf3 {[%clk 0:01:09.2]} 21... Re8 {[%clk 0:01:48.5]} 22. Qd3
{[%clk 0:01:10.1]} 22... Bf5 {[%clk 0:01:18]} 23. Qc3 {[%clk 0:01:10.2]} 23...
Qc7 {[%clk 0:01:13.6]} 24. c5 {[%clk 0:01:00.3]} 24... Be4 {[%clk 0:01:11.8]}
25. Rd6 {[%clk 0:00:57.1]} 1-0

[Event "*** Titled Tuesday Blitz"]
[Site "Chess.com"]
[Date "2019.02.05"]
[Round "8"]
[White "Samuray111"]
[Black "ChessWarrior7197"]
[Result "0-1"]
[WhiteElo "2590"]
[BlackElo "2882"]
[TimeControl "180+2"]
[EndTime "14:55:09 PST"]
[Termination "ChessWarrior7197 won by checkmate"]

1. Nf3 {[%clk 0:02:58.1]} 1... Nf6 {[%clk 0:03:00.6]} 2. b3 {[%clk 0:02:59]}
2... d5 {[%clk 0:02:59]} 3. Bb2 {[%clk 0:02:58]} 3... c5 {[%clk 0:03:00.1]} 4.
e3 {[%clk 0:02:58.8]} 4... e6 {[%clk 0:03:00.8]} 5. Bb5+ {[%clk 0:02:58.8]} 5...
Bd7 {[%clk 0:03:01.6]} 6. Bxd7+ {[%clk 0:02:58.7]} 6... Nbxd7 {[%clk 0:03:03.5]}
7. O-O {[%clk 0:02:59.9]} 7... Bd6 {[%clk 0:03:04.9]} 8. d3 {[%clk 0:03:01.2]}
8... O-O {[%clk 0:03:05.7]} 9. Nbd2 {[%clk 0:03:02.6]} 9... Qc7 {[%clk
0:03:06.3]} 10. h3 {[%clk 0:03:02.4]} 10... b5 {[%clk 0:03:05.4]} 11. c4 {[%clk
0:02:56.7]} 11... a6 {[%clk 0:03:03.2]} 12. Rc1 {[%clk 0:02:57.1]} 12... Qb7
{[%clk 0:03:02.7]} 13. Qe2 {[%clk 0:02:56]} 13... a5 {[%clk 0:02:56]} 14. e4
{[%clk 0:02:56.5]} 14... Bc7 {[%clk 0:01:51.3]} 15. Rb1 {[%clk 0:02:36]} 15...
d4 {[%clk 0:01:47.5]} 16. cxb5 {[%clk 0:02:34]} 16... Qxb5 {[%clk 0:01:47.1]}
17. Rfc1 {[%clk 0:02:30.3]} 17... a4 {[%clk 0:01:45]} 18. bxa4 {[%clk
0:02:28.4]} 18... Qxa4 {[%clk 0:01:46.9]} 19. a3 {[%clk 0:02:28.4]} 19... Rfb8
{[%clk 0:01:48]} 20. Nc4 {[%clk 0:02:29.7]} 20... Nb6 {[%clk 0:01:41.1]} 21.
Nfd2 {[%clk 0:02:28.5]} 21... Nfd7 {[%clk 0:01:41.4]} 22. Nxb6 {[%clk
0:02:18.6]} 22... Rxb6 {[%clk 0:01:40.4]} 23. Nc4 {[%clk 0:02:18.6]} 23... Rb7
{[%clk 0:01:41]} 24. Qh5 {[%clk 0:01:56.4]} 24... Rab8 {[%clk 0:01:29.3]} 25.
Qg5 {[%clk 0:01:35.1]} 25... h6 {[%clk 0:01:25.3]} 26. Qe7 {[%clk 0:01:32.8]}
26... Ne5 {[%clk 0:01:08.8]} 27. Nxe5 {[%clk 0:01:26.6]} 27... Bxe5 {[%clk
0:01:10.7]} 28. Qxc5 {[%clk 0:01:27.9]} 28... Bf4 {[%clk 0:01:11.6]} 29. Rc4
{[%clk 0:01:23.5]} 29... Rxb2 {[%clk 0:01:05.3]} 30. Rxb2 {[%clk 0:01:13]} 30...
Qd1# {[%clk 0:01:05.4]} 0-1